bitfinex-derivatives/quotes_SOLF0:USTF0_20260107
["timestamp","ask_amount","ask_price","bid_price","bid_amount"]
[1767752866796,6.4616,139.37,139.3,6.78663803]
[1767752868903,6.4616,139.36,139.3,6.78663803]
[1767752870105,6.4622,139.35,139.28,15.38361543]
[1767752870301,6.4622,139.35,139.28,15.70605346]
[1767752871394,6.4626,139.34,139.28,15.70605346]
[1767752871797,6.4626,139.34,139.28,6.78733803]
[1767752872201,6.4626,139.34,139.28,9.24115346]
[1767752874711,6.4632,139.33,139.28,8.91871543]
[1767752878111,6.4625,139.34,139.28,8.91871543]
[1767752878913,6.4625,139.34,139.28,15.38401543]
[1767752879315,6.4625,139.34,139.28,15.71508478]
[1767752880203,6.4625,139.34,139.29,0.33106935]
[1767752881113,6.4625,139.34,139.29,9.24978478]
[1767752881413,93.87328848,139.35,139.29,15.71458478]
[1767752881607,91.3021,139.35,139.29,15.71458478]
[1767752882511,6.4611,139.38,139.32,0.32608255]
[1767752882901,2.57118848,139.38,139.31,15.38261543]
[1767752883707,6.4617,139.36,139.31,8.91871543]
[1767752883909,6.4617,139.36,139.3,0.32608255]
[1767752883910,87.41118848,139.38,139.3,8.91871543]
[1767752884212,84.84,139.37,139.3,8.91871543]
[1767752885621,6.4622,139.35,139.3,8.91871543]
[1767752885911,2.57118848,139.35,139.28,13.44644861]
[1767752886116,6.4644,139.3,139.24,0.32608255]
[1767752888011,6.4649,139.29,139.2,0.32608255]
[1767752888217,6.4649,139.29,139.22,6.79418255]
[1767752888418,2.57118848,139.29,139.22,0.32608255]
[1767752888808,87.41118848,139.29,139.22,0.32608255]
[1767752889608,6.4655,139.28,139.22,0.32608255]
[1767752891824,87.41118848,139.29,139.22,0.32608255]
[1767752892122,87.41118848,139.29,139.2,0.32608255]
[1767752893622,6.4663,139.26,139.2,0.32608255]
[1767752895227,6.4655,139.28,139.2,0.32608255]
[1767752896412,6.4658,139.27,139.2,0.32608255]
[1767752896622,2.57118848,139.26,139.2,0.32608255]
[1767752896921,87.43118848,139.26,139.2,0.32608255]
[1767752897520,93.89748848,139.26,139.2,0.32608255]
[1767752898826,87.43118848,139.26,139.2,6.79498255]
[1767752899129,100.5492,139.32,139.21,0.32608255]
[1767752899329,87.45118848,139.31,139.21,0.32608255]
[1767752900516,6.4647,139.3,139.23,6.4675]
[1767752902132,6.4647,139.3,139.23,6.79358255]
[1767752902625,87.45118848,139.31,139.24,0.32608255]
[1767752902626,2.57118848,139.31,139.24,0.32608255]
[1767752902826,91.3436,139.32,139.24,0.32608255]
[1767752903427,91.3436,139.32,139.21,100.6161]
[1767752903428,6.4629,139.34,139.26,0.32608255]
[1767752903736,84.88,139.33,139.26,0.32608255]
[1767752903935,84.88,139.33,139.27,6.4658]
[1767752904234,84.88,139.33,139.28,0.32608255]
[1767752904451,2.57118848,139.38,139.28,6.79128255]
[1767752904452,6.4619,139.36,139.28,6.79128255]
[1767752904942,91.3419,139.36,139.28,6.79128255]
[1767752905838,6.4621,139.35,139.28,6.79128255]
[1767752910430,6.4621,139.35,139.28,0.32608255]
[1767752913235,6.4626,139.34,139.28,0.32608255]
[1767752916348,6.462,139.36,139.28,0.32608255]
[1767752916544,84.86,139.35,139.28,0.32608255]
[1767752917646,6.4626,139.34,139.28,0.32608255]
[1767752919553,6.4626,139.34,139.26,9.22428431]
[1767752920249,6.4626,139.34,139.27,0.30477589]
[1767752920439,6.4626,139.34,139.27,6.77047589]
[1767752921252,6.4626,139.34,139.27,0.30477589]
[1767752923649,6.4631,139.33,139.26,6.466]
[1767752923842,87.43118848,139.35,139.25,0.30477589]
[1767752924040,2.57118848,139.35,139.25,0.30477589]
[1767752924249,84.86,139.34,139.25,0.30477589]
[1767752924657,1.64647878,139.32,139.25,0.30477589]
[1767752924955,6.4639,139.31,139.25,0.30477589]
[1767752925151,1.64647878,139.32,139.24,8.91950842]
[1767752925456,185.3931,139.34,139.23,9.22428431]
[1767752925457,1.64647878,139.3,139.23,9.22428431]
[1767752925756,1.64647878,139.3,139.23,0.30477589]
[1767752926550,8.11087878,139.3,139.23,6.77237589]
[1767752929059,6.4644,139.3,139.23,6.77237589]
[1767752929245,8.11087878,139.3,139.23,6.77237589]
[1767752932561,1.64647878,139.3,139.23,0.30477589]
[1767752934561,8.11087878,139.3,139.23,6.77237589]
[1767752937862,100.5398,139.33,139.23,0.30477589]
[1767752938068,6.4649,139.29,139.23,0.30477589]
[1767752942670,6.4654,139.28,139.21,15.69730778]
[1767752944369,6.4654,139.28,139.22,0.30929936]
[1767752946273,6.4654,139.28,139.22,9.22880778]
[1767752946973,6.4654,139.28,139.22,0.30929936]
[1767752947468,8.11127878,139.3,139.22,6.77729936]
[1767752948575,8.11127878,139.3,139.23,6.4676]
[1767752949376,1.64647878,139.3,139.24,6.4671]
[1767752949559,6.4639,139.31,139.24,6.4671]
[1767752949762,1.64647878,139.3,139.24,6.4671]
[1767752955083,8.11097878,139.3,139.24,6.4671]
[1767752956284,8.11097878,139.3,139.23,0.30929936]
[1767752956977,6.465,139.29,139.23,0.30929936]
[1767752959183,8.11147878,139.29,139.23,0.30929936]
[1767752961275,8.11147878,139.29,139.23,9.22880778]
[1767752963880,6.4654,139.28,139.23,9.22880778]
[1767752967281,6.4654,139.28,139.24,8.91950842]
[1767752973296,1.64647878,139.27,139.22,13.37166306]
[1767752973686,1.64647878,139.27,139.19,13.68613038]
[1767752973883,1.64647878,139.27,139.2,0.31446732]
[1767752974088,1.64647878,139.27,139.2,6.78336732]
[1767752974794,6.4664,139.26,139.2,0.31446732]
[1767752982601,6.4664,139.26,139.2,6.78326732]
[1767752982803,6.4664,139.26,139.21,0.31446732]
[1767752983404,91.3457,139.28,139.21,0.31446732]
[1767752983600,92.99217878,139.28,139.21,0.31446732]
[1767752983906,86.52647878,139.28,139.21,0.31446732]
[1767752984605,84.88,139.28,139.21,0.31446732]
[1767752985603,6.4658,139.27,139.21,0.31446732]
[1767752987304,100.6275,139.21,139.11,0.31446732]
[1767752987507,100.6519,139.17,139.09,0.31446732]
[1767752987812,84.88,139.17,139.09,0.31446732]
[1767752988108,6.471,139.16,139.1,0.31446732]
[1767752988811,6.4714,139.15,139.1,0.31446732]
[1767752989710,103.25532073,139.13,139.04,0.31446732]
[1767752990005,185.592,139.12,139.02,0.31446732]
[1767752990302,2.57392073,139.1,139.02,0.31446732]
[1767752991706,6.4743,139.09,139.02,0.31446732]
[1767752991897,91.3743,139.09,139.02,0.31446732]
[1767752992303,84.9,139.09,138.99,0.31446732]
[1767752993817,91.3948,139.08,138.99,0.31446732]
[1767752999012,84.92,139.08,138.97,0.31446732]
[1767752999211,2.57392073,139.07,138.97,0.31446732]
[1767752999415,84.96,139.06,138.97,0.31446732]
[1767752999919,84.96,139.06,138.94,6.4809]
[1767753000119,2.57392073,139.04,138.95,0.31446732]
[1767753000419,2.57392073,139.04,138.92,6.79626732]
[1767753000420,6.4776,139.02,138.92,6.79626732]
[1767753000725,185.7173,139.03,138.92,0.31446732]
[1767753000914,100.7573,139.03,138.92,0.31446732]
[1767753001116,84.96,139.02,138.92,0.31446732]
[1767753001719,103.34202073,139.01,138.92,0.31446732]
[1767753001923,100.7751,139.0,138.9,0.33026129]
[1767753002224,2.57392073,138.95,138.86,0.33026129]
[1767753002419,84.98,138.94,138.86,0.33026129]
[1767753002928,100.8256,138.93,138.83,0.33026129]
[1767753003123,185.8056,138.93,138.83,0.33026129]
[1767753003813,103.40772073,138.92,138.8,15.39185686]
[1767753004125,103.40772073,138.92,138.81,0.30307702]
[1767753005120,6.4827,138.91,138.81,6.79017702]
[1767753005325,103.40772073,138.92,138.81,6.79017702]
[1767753005912,6.4823,138.92,138.83,0.30307702]
[1767753006118,85.02,138.91,138.83,0.30307702]
[1767753007721,85.02,138.91,138.83,6.78927702]
[1767753007928,85.02,138.91,138.83,0.30307702]
[1767753009131,6.4833,138.9,138.83,0.30307702]
[1767753009521,2.57392073,138.92,138.83,0.30307702]
[1767753009829,85.04,138.91,138.83,0.30307702]
[1767753010525,85.04,138.91,138.8,4.11117984]
[1767753010526,100.8693,138.87,138.8,4.11117984]
[1767753010834,87.63392073,138.86,138.8,7.984e-05]
[1767753011133,85.06,138.86,138.8,7.984e-05]
[1767753011926,89.07392073,138.86,138.8,7.984e-05]
[1767753012121,89.07392073,138.86,138.7,0.30307702]
[1767753012122,100.9063,138.82,138.7,0.30307702]
[1767753012329,2.57392073,138.8,138.7,0.30307702]
[1767753013030,6.4888,138.78,138.7,0.30307702]
[1767753013233,2.57392073,138.82,138.72,0.30307702]
[1767753013434,100.8871,138.85,138.73,0.30307702]
[1767753013435,2.57392073,138.85,138.73,0.30307702]
[1767753013742,85.06,138.84,138.73,0.30307702]
[1767753013944,6.4864,138.83,138.74,6.4903]
[1767753016141,85.08,138.84,138.76,0.30307702]
[1767753017637,85.08,138.84,138.76,6.79227702]
[1767753018239,6.4854,138.85,138.76,6.79227702]
[1767753018439,91.6054,138.85,138.76,6.79227702]
[1767753018637,85.12,138.85,138.76,0.30307702]
[1767753019343,91.6054,138.85,138.76,0.30307702]
[1767753019551,85.12,138.85,138.76,0.30307702]
[1767753019743,85.12,138.84,138.76,0.30307702]
[1767753020545,91.606,138.84,138.76,0.30307702]
[1767753021141,85.12,138.84,138.76,0.30307702]
[1767753022247,186.0155,138.84,138.73,6.79377702]
[1767753022452,100.8983,138.83,138.73,6.79377702]
[1767753022655,100.8983,138.83,138.69,0.30307702]
[1767753023151,186.0155,138.84,138.71,0.30307702]
[1767753023952,85.12,138.84,138.74,0.30307702]
[1767753024454,6.4873,138.81,138.74,0.30307702]
[1767753024850,100.8792,138.86,138.74,0.30307702]
[1767753025058,85.14,138.85,138.74,0.30307702]
[1767753025240,100.8792,138.86,138.74,0.30307702]
[1767753025445,85.14,138.85,138.74,0.30307702]
[1767753025860,100.8949,138.84,138.73,6.4906]
[1767753026250,100.8949,138.84,138.73,0.30307702]
[1767753026644,6.94673842,138.89,138.74,0.30307702]
[1767753026850,6.485,138.86,138.79,0.30307702]
[1767753027251,6.485,138.86,138.79,6.79107702]
[1767753027648,6.4855,138.85,138.79,0.30307702]
[1767753027954,85.14,138.87,138.77,6.4887]
[1767753028458,85.14,138.87,138.73,0.30307702]
[1767753028459,100.8922,138.84,138.73,0.30307702]
[1767753028852,85.14,138.83,138.73,0.30307702]
[1767753029651,6.4873,138.81,138.73,6.79367702]
[1767753030853,6.4873,138.81,138.71,100.9822]
[1767753030854,186.0429,138.83,138.71,6.4915]
[1767753031156,85.14,138.82,138.72,0.30307702]
[1767753032251,6.4882,138.79,138.72,6.79437702]
[1767753033961,6.4876,138.81,138.73,6.4909]
[1767753034163,85.14,138.82,138.73,6.4909]
[1767753035456,6.4878,138.8,138.72,0.30307702]
[1767753035965,6.4882,138.79,138.72,6.79437702]
[1767753039764,6.4887,138.78,138.7,0.30060667]
[1767753040563,6.4887,138.78,138.71,6.79240667]
[1767753040870,6.4887,138.78,138.71,0.30060667]
[1767753043667,6.4887,138.78,138.71,6.79230667]
[1767753045870,6.4887,138.78,138.72,6.4913]
[1767753051978,6.4892,138.77,138.71,6.79240667]
[1767753052677,6.4892,138.77,138.72,0.30060667]
[1767753054577,100.9146,138.81,138.7,0.30060667]
[1767753054782,100.9305,138.79,138.7,0.30060667]
[1767753055573,6.4897,138.76,138.7,0.30060667]
[1767753055978,6.4897,138.76,138.7,6.79290667]
[1767753061983,6.4897,138.76,138.7,6.4923]
[1767753062178,6.49,138.75,138.69,6.81266482]
[1767753062891,6.49,138.75,138.7,0.31986482]
[1767753063392,6.49,138.75,138.69,6.4928]
[1767753063393,1.65941338,138.76,138.68,0.31986482]
[1767753063594,1.65941338,138.74,138.68,0.31986482]
[1767753064394,1.65941338,138.74,138.66,0.31986482]
[1767753064593,6.4911,138.73,138.67,6.4935]
[1767753064794,1.65941338,138.74,138.66,0.31986482]
[1767753065093,6.4915,138.72,138.66,0.31986482]
[1767753065692,6.4919,138.71,138.66,0.31986482]
[1767753066182,1.65941338,138.74,138.66,0.31986482]
[1767753066381,6.4914,138.72,138.66,6.81406482]
[1767753067790,21.39265912,138.79,138.66,6.81406482]
[1767753067791,7.188,138.88,138.67,0.31986482]
[1767753068099,100.9081,138.82,138.72,0.31986482]
[1767753068390,6.4881,138.79,138.72,0.31986482]
[1767753068998,102.59101338,138.79,138.69,0.31986482]
[1767753069307,1.65941338,138.78,138.69,0.31986482]
[1767753070696,6.4895,138.76,138.69,6.81266482]
[1767753071806,1.65941338,138.79,138.71,0.31986482]
[1767753073099,1.65941338,138.79,138.69,0.31986482]
[1767753073304,1.65941338,138.77,138.69,0.31986482]
[1767753073499,6.4896,138.76,138.69,0.31986482]
[1767753073703,1.65941338,138.77,138.68,6.493]
[1767753073899,1.65941338,138.75,138.68,6.493]
[1767753074399,6.4906,138.74,138.67,6.81356482]
[1767753074606,1.65941338,138.73,138.67,6.4937]
[1767753076199,1.65941338,138.71,138.65,6.4945]
[1767753076400,1.65941338,138.71,138.63,0.31986482]
[1767753076598,1.65941338,138.71,138.64,6.81476482]
[1767753077599,1.65941338,138.71,138.65,0.31986482]
[1767753078501,186.1593,138.75,138.65,0.31986482]
[1767753078703,6.4916,138.72,138.65,0.31986482]
[1767753079304,6.4906,138.74,138.65,0.31986482]
[1767753080208,6.4906,138.74,138.65,6.81446482]
[1767753080409,6.4906,138.74,138.65,0.31986482]
[1767753080701,85.2,138.74,138.65,0.31986482]
[1767753080903,85.2,138.74,138.66,6.4942]
[1767753083401,6.49,138.75,138.67,0.31986482]
[1767753083603,85.22,138.76,138.68,0.31986482]
[1767753084399,91.7096,138.76,138.68,0.31986482]
[1767753084599,91.7096,138.76,138.66,0.31986482]
[1767753085308,91.7096,138.76,138.68,6.4931]
[1767753087311,6.4896,138.76,138.68,6.4931]
[1767753087512,85.22,138.75,138.68,6.4931]
[1767753087813,85.22,138.75,138.69,6.4928]
[1767753088505,85.22,138.75,138.66,0.31986482]
[1767753088706,85.22,138.75,138.67,6.4934]
[1767753088914,4.28355998,138.79,138.68,0.31986482]
[1767753089116,85.22,138.77,138.68,0.31986482]
[1767753090606,91.7092,138.77,138.71,6.4915]
[1767753091015,91.7092,138.77,138.68,0.31986482]
[1767753091614,85.22,138.77,138.68,0.31986482]
[1767753092712,85.22,138.77,138.69,6.4928]
[1767753093708,85.22,138.77,138.68,6.4932]
[1767753094115,4.28355998,138.76,138.65,0.3099845]
[1767753094319,6.4916,138.72,138.65,0.3099845]
[1767753094509,91.7116,138.72,138.65,0.3099845]
[1767753094815,85.22,138.72,138.65,0.3099845]
[1767753095618,85.22,138.72,138.66,6.494]
[1767753098522,86.88077083,138.72,138.66,6.494]
[1767753100224,85.22,138.72,138.67,6.4937]
[1767753102519,1.66077083,138.73,138.67,6.4937]
[1767753102825,100.9389,138.78,138.68,6.4932]
[1767753102826,1.66077083,138.74,138.68,6.4932]
[1767753103020,91.7104,138.75,138.68,6.4932]
[1767753103225,1.66077083,138.74,138.68,6.8032845]
[1767753103416,1.66077083,138.72,138.65,0.3099845]
[1767753104020,1.66077083,138.72,138.67,6.4935]
[1767753106528,6.491,138.73,138.67,6.4935]
[1767753110336,85.22,138.74,138.68,6.4932]
[1767753111936,85.22,138.74,138.69,6.4927]
[1767753112436,91.7105,138.74,138.68,6.4932]
[1767753112636,85.22,138.74,138.66,0.3099845]
[1767753113032,85.22,138.74,138.68,6.8030845]
[1767753113237,85.22,138.74,138.68,0.3099845]
[1767753113738,85.22,138.74,138.68,6.8032845]
[1767753122953,85.22,138.74,138.68,6.4933]
[1767753123753,2.59444621,138.73,138.66,6.4938]
[1767753123942,2.59444621,138.73,138.66,0.30561229]
[1767753124341,2.59444621,138.73,138.67,6.4937]
[1767753125653,85.22,138.74,138.68,6.4928]
[1767753126251,85.22,138.74,138.68,6.79841229]
[1767753130453,91.7105,138.74,138.66,13.42899229]
[1767753131455,91.7105,138.74,138.68,6.4933]
[1767753134155,85.22,138.74,138.69,6.4927]
[1767753134350,85.22,138.74,138.69,6.79831229]
[1767753137154,2.59444621,138.76,138.7,6.4923]
[1767753137358,2.59444621,138.82,138.7,0.30561229]
[1767753137559,85.22,138.79,138.7,0.30561229]
[1767753137766,2.59444621,138.82,138.7,0.30561229]
[1767753137953,85.22,138.81,138.7,0.30561229]
[1767753138147,85.22,138.81,138.71,0.30561229]
[1767753138659,6.4885,138.79,138.72,6.4914]
[1767753140353,6.4886,138.78,138.71,0.30561229]
[1767753140659,2.59444621,138.76,138.69,0.30561229]
[1767753140861,87.81444621,138.76,138.67,9.31041139]
[1767753141057,2.59444621,138.76,138.68,9.0047991]
[1767753141255,87.81444621,138.76,138.68,9.0047991]
[1767753141456,87.81444621,138.76,138.67,9.31041139]
[1767753141666,94.30394621,138.76,138.69,6.4926]
[1767753149471,94.30394621,138.76,138.69,15.4973991]
[1767753150571,87.81444621,138.76,138.69,9.31041139]
[1767753150771,87.81444621,138.76,138.69,0.30561229]
[1767753151572,6.4901,138.75,138.69,0.30561229]
[1767753153381,6.4901,138.75,138.69,6.79841229]
[1767753154972,9.08404621,138.76,138.69,15.80321139]
[1767753155981,9.08404621,138.76,138.69,15.4975991]
[1767753158992,6.4896,138.76,138.69,15.80530155]
[1767753159988,2.59444621,138.92,138.79,0.30770245]
[1767753160289,103.43894621,138.91,138.82,6.73171852]
[1767753160499,2.59444621,138.88,138.82,6.73171852]
[1767753160982,2.59444621,138.88,138.83,6.73171852]
[1767753161181,2.59444621,138.88,138.82,6.73171852]
[1767753161782,87.79444621,138.92,138.83,7.03942097]
[1767753162482,6.4827,138.91,138.83,7.03942097]
[1767753162683,91.6827,138.91,138.83,7.03942097]
[1767753164393,91.6827,138.91,138.83,0.30770245]
[1767753164887,2.59444621,138.89,138.81,6.73171852]
[1767753165092,2.59444621,138.89,138.79,6.73171852]
[1767753165289,2.59444621,138.86,138.78,7.03942097]
[1767753165486,2.59444621,138.86,138.78,0.30770245]
[1767753165880,2.59444621,138.86,138.78,7.03942097]
[1767753166187,2.59444621,138.86,138.78,0.30770245]
[1767753166584,2.59444621,138.86,138.78,6.79610245]
[1767753168492,1.65734657,138.86,138.78,6.79610245]
[1767753170096,1.65734657,138.86,138.78,13.52782097]
[1767753170293,1.65734657,138.86,138.78,6.79610245]
[1767753174788,1.65734657,138.86,138.79,0.30770245]
[1767753175891,8.14184657,138.87,138.8,0.30770245]
[1767753176097,6.4845,138.87,138.8,0.30770245]
[1767753176395,8.14184657,138.87,138.8,0.30770245]
[1767753177094,71.62659721,139.21,138.82,0.30770245]
[1767753177095,86.81734657,138.89,138.82,0.30770245]
[1767753177899,85.16,138.89,138.84,0.30770245]
[1767753178290,85.16,138.89,138.84,6.79340245]
[1767753178495,8.13944657,138.92,138.84,6.79340245]
[1767753178800,93.29944657,138.92,138.84,6.79340245]
[1767753179204,6.4826,138.91,138.84,0.30770245]
[1767753179598,1.65734657,138.9,138.84,0.30770245]
[1767753179902,1.65734657,138.9,138.82,6.8118601]
[1767753180495,1.65734657,138.9,138.83,0.3255601]
[1767753180697,8.14034657,138.9,138.83,0.3255601]
[1767753180898,86.81734657,138.92,138.84,0.3255601]
[1767753181492,93.29964657,138.92,138.85,0.3253662]
[1767753183900,85.16,138.92,138.85,6.8105662]
[1767753185706,6.4812,138.94,138.87,0.3253662]
[1767753185911,8.13854657,138.94,138.87,0.3253662]
[1767753186311,6.4817,138.93,138.87,0.3253662]
[1767753187109,1.65734657,138.94,138.87,0.3253662]
[1767753188608,8.13844657,138.94,138.87,0.3253662]
[1767753190110,8.13844657,138.94,138.87,6.8096662]
[1767753190317,85.14,138.95,138.88,0.3253662]
[1767753191013,100.7828,138.99,138.85,6.68233505]
[1767753191014,6.4801,138.97,138.89,0.3253662]
[1767753191206,1.65734657,138.96,138.89,0.3253662]
[1767753191413,1.65734657,138.97,138.89,0.3253662]
[1767753191616,1.65734657,138.97,138.91,0.3253662]
[1767753191915,85.12,138.98,138.91,0.3253662]
[1767753192115,8.13654657,138.99,138.91,0.3253662]
[1767753192116,1.65734657,138.99,138.91,0.3253662]
[1767753192313,85.12,139.0,138.93,6.8067662]
[1767753192514,93.25564657,139.01,138.93,6.8067662]
[1767753193815,1.65734657,138.99,138.93,0.3253662]
[1767753194115,1.65734657,138.99,138.91,6.8074662]
[1767753194318,1.65734657,138.99,138.91,0.3253662]
[1767753195014,1.65734657,139.02,138.93,0.3253662]
[1767753195316,1.65734657,139.04,138.94,0.3253662]
[1767753195917,1.65734657,139.07,138.98,0.3253662]
[1767753196219,86.75734657,139.09,138.99,0.3253662]
[1767753196417,1.65734657,139.09,138.99,0.3253662]
[1767753196617,86.75734657,139.09,139.01,6.4776]
[1767753196819,86.75734657,139.09,139.01,0.3253662]
[1767753197019,1.65734657,139.13,139.03,0.3253662]
[1767753197222,1.65734657,139.14,139.06,0.3253662]
[1767753197620,1.65734657,139.15,139.07,6.4748]
[1767753197823,1.65734657,139.15,139.07,6.8001662]
[1767753199322,1.65734657,139.16,139.09,0.3253662]
[1767753199515,1.65734657,139.14,139.06,0.3253662]
[1767753200624,1.65734657,139.14,139.07,0.3253662]
[1767753201012,100.6474,139.18,139.05,0.3253662]
[1767753201013,1.65734657,139.15,139.05,0.3253662]
[1767753201316,8.12804657,139.17,139.07,0.3253662]
[1767753201523,1.65734657,139.19,139.09,0.3253662]
[1767753201724,86.71734657,139.19,139.09,0.3253662]
[1767753202023,15.08877984,139.2,139.11,0.3253662]
[1767753203919,1.65734657,139.19,139.11,0.3253662]
[1767753204325,1.65734657,139.17,139.09,0.3253662]
[1767753204915,1.65734657,139.18,139.09,0.3253662]
[1767753205313,2.19754035,139.2,139.15,0.3253662]
[1767753206522,2.19754035,139.2,139.12,0.3253662]
[1767753206722,1.65734657,139.19,139.11,85.0]
[1767753206919,2.19754035,139.2,139.11,0.3253662]
[1767753207124,1.65734657,139.25,139.16,0.3253662]
[1767753207527,1.65734657,139.25,139.16,6.7960662]
[1767753207826,1.65734657,139.25,139.16,0.3253662]
[1767753208024,1.65734657,139.27,139.18,0.3253662]
[1767753208216,1.65734657,139.27,139.19,0.3253662]
[1767753208726,6.4644,139.3,139.19,0.3253662]
[1767753208927,85.0,139.29,139.19,0.3253662]
[1767753209615,85.0,139.29,139.2,6.7940662]
[1767753210620,84.98,139.28,139.2,6.7940662]
[1767753211515,84.98,139.28,139.17,0.3059568]
[1767753211719,84.98,139.28,139.12,100.6857]
[1767753211720,4.24883406,139.27,139.14,0.3059568]
[1767753212023,84.98,139.26,139.14,0.3059568]
[1767753212529,91.4464,139.26,139.16,6.4708]
[1767753213018,4.24883406,139.3,139.17,0.3059568]
[1767753213217,84.96,139.29,139.17,0.3059568]
[1767753214124,84.96,139.28,139.19,6.7752568]
[1767753215324,104.78923406,139.33,139.2,0.3059568]
[1767753215525,84.96,139.32,139.2,0.3059568]
[1767753215725,6.4641,139.31,139.2,0.3059568]
[1767753215923,84.96,139.3,139.2,0.3059568]
[1767753216325,6.4641,139.31,139.2,0.3059568]
[1767753216523,84.94,139.3,139.22,6.4679]
[1767753217121,84.94,139.3,139.24,6.7729568]
[1767753217326,84.94,139.34,139.25,0.3059568]
[1767753217633,84.94,139.33,139.25,0.3059568]
[1767753218625,84.94,139.33,139.25,6.7725568]
[1767753220732,84.94,139.33,139.26,0.3059568]
[1767753221232,91.4031,139.33,139.26,0.3059568]
[1767753222736,6.4623,139.35,139.26,6.7720568]
[1767753222931,4.24883406,139.37,139.27,0.3059568]
[1767753223235,84.92,139.36,139.27,0.3059568]
[1767753223934,10.71013406,139.37,139.27,6.7715568]
[1767753224129,84.9,139.36,139.27,0.3059568]
[1767753224733,84.9,139.36,139.29,6.4647]
[1767753225530,84.9,139.37,139.29,6.4647]
[1767753225923,84.9,139.37,139.3,6.4643]
[1767753226329,84.9,139.37,139.29,0.3059568]
[1767753226726,84.9,139.37,139.29,6.7704568]
[1767753227336,84.9,139.37,139.3,6.4642]
[1767753227639,84.88,139.37,139.29,0.3059568]
[1767753227933,84.88,139.39,139.3,0.3059568]
[1767753228236,84.88,139.39,139.33,6.4629]
[1767753229036,84.88,139.39,139.31,6.4635]
[1767753229632,2.56968283,139.36,139.27,6.7716568]
[1767753229942,87.44968283,139.36,139.27,6.7716568]
[1767753230235,87.44968283,139.36,139.28,6.4652]
[1767753232132,87.44968283,139.36,139.26,6.4659]
[1767753233241,87.44968283,139.36,139.26,6.7718568]
[1767753233642,6.4622,139.35,139.26,6.7718568]
[1767753233830,87.44968283,139.36,139.26,6.7718568]
[1767753234232,2.56968283,139.36,139.26,6.7718568]
[1767753234438,84.86,139.35,139.27,0.3059568]
[1767753235138,9.03158283,139.36,139.27,0.3059568]
[1767753235442,93.89158283,139.36,139.28,6.7711568]
[1767753235646,91.3219,139.36,139.28,6.7711568]
[1767753236842,6.4621,139.35,139.28,6.7711568]
[1767753237043,84.86,139.36,139.25,0.3059568]
[1767753238142,2.56968283,139.39,139.29,6.4647]
[1767753238344,84.86,139.38,139.29,6.7706568]
[1767753239055,2.56968283,139.36,139.26,0.35255942]
[1767753240557,6.4625,139.34,139.26,0.35255942]
[1767753240748,2.56968283,139.36,139.26,0.35255942]
[1767753240944,84.86,139.35,139.26,0.35255942]
[1767753241147,84.86,139.35,139.23,85.21255942]
[1767753241355,2.56968283,139.33,139.23,0.35255942]
[1767753242055,9.03268283,139.33,139.23,0.35255942]
[1767753243257,9.03268283,139.33,139.24,6.467]
[1767753243947,9.03268283,139.33,139.25,6.4667]
[1767753244947,9.03268283,139.33,139.2,8.90978007]
[1767753244948,100.5449,139.32,139.2,0.36184199]
[1767753245257,2.56968283,139.28,139.2,0.36184199]
[1767753245644,9.03518283,139.28,139.2,0.36184199]
[1767753246451,6.4655,139.28,139.2,0.36184199]
[1767753247560,6.4655,139.28,139.21,6.4685]
[1767753248060,6.4655,139.28,139.2,0.36184199]
[1767753249454,6.4655,139.28,139.2,6.95083055]
[1767753249657,6.4655,139.28,139.2,13.41983055]
[1767753249964,6.4659,139.27,139.2,6.58898856]
[1767753250762,6.4659,139.27,139.2,13.05798856]
[1767753251461,84.88,139.28,139.21,13.05738856]
[1767753252556,84.88,139.3,139.22,13.41883055]
[1767753253265,120.35562992,139.35,139.23,13.41843055]
[1767753253462,84.88,139.34,139.23,13.41843055]
[1767753253866,6.464,139.31,139.23,13.41843055]
[1767753254858,6.464,139.31,139.24,6.58898856]
[1767753255863,6.4644,139.3,139.24,6.58898856]
[1767753257369,6.4644,139.3,139.25,6.58898856]
[1767753257769,6.4638,139.32,139.25,6.58898856]
[1767753257962,185.412,139.34,139.25,6.58898856]
[1767753259566,6.4639,139.31,139.25,6.58898856]
[1767753260076,6.4639,139.31,139.26,6.58898856]
[1767753263968,6.4634,139.33,139.26,6.58898856]
[1767753264162,84.88,139.33,139.27,6.58898856]
[1767753266177,185.4192,139.33,139.25,8.856e-05]